bitfinex-derivatives/quotes_ETHF0:USTF0_20260102
["timestamp","ask_amount","ask_price","bid_price","bid_amount"]
[1767365553995,0.00484911,3094.8,3094.2,0.01666463]
[1767365554189,0.00484911,3094.8,3094.4,0.01181552]
[1767365555389,0.00484911,3094.8,3094.2,0.00484911]
[1767365555702,4.08416494,3094.7,3092.7,2.2418513]
[1767365555889,0.83416494,3094.6,3092.4,0.00322856]
[1767365556197,3.25,3094.4,3092.0,2.2418513]
[1767365556389,1.64904239,3094.5,3092.0,2.2418513]
[1767365556390,0.16175,3093.7,3092.0,2.2418513]
[1767365556584,0.00484911,3093.2,3092.5,0.00484911]
[1767365556789,0.00870558,3093.2,3092.5,0.00711361]
[1767365556994,0.00870558,3093.2,3091.3,2.2418513]
[1767365557197,0.00870558,3093.2,3091.7,0.00322856]
[1767365557198,0.8342918,3093.1,3091.7,0.00322856]
[1767365557491,0.83383706,3093.0,3091.7,0.00322856]
[1767365557697,0.16179,3093.0,3091.7,0.00322856]
[1767365557892,0.00870558,3093.2,3092.0,0.00484911]
[1767365558193,0.00870558,3093.2,3092.0,2.24992897]
[1767365558389,0.16172,3094.4,3092.0,2.24992897]
[1767365558592,0.16172,3094.4,3092.2,2.24507986]
[1767365559299,0.16168,3095.2,3092.6,2.2418513]
[1767365559499,0.00484911,3094.2,3093.6,0.00484911]
[1767365559801,0.16486723,3095.2,3093.6,0.00484911]
[1767365559996,0.16169,3095.0,3092.7,4.29430183]
[1767365560200,0.16169,3095.0,3093.1,0.00322856]
[1767365560393,0.16169,3095.0,3093.1,2.2418513]
[1767365560593,0.16169,3095.0,3093.5,0.00322856]
[1767365560787,7.61718723,3095.2,3092.4,0.16182]
[1767365560788,0.1617,3094.7,3092.4,2.2418513]
[1767365560996,0.00484911,3093.9,3093.2,0.00484911]
[1767365561695,0.00484911,3093.9,3093.3,0.00322856]
[1767365562088,0.00484911,3093.9,3092.4,2.2418513]
[1767365562293,0.00484911,3093.9,3092.5,0.00322856]
[1767365562892,0.00484911,3093.9,3092.9,0.00322856]
[1767365563095,0.00484911,3093.9,3093.1,0.00484911]
[1767365563500,0.00484911,3093.9,3093.2,0.00322856]
[1767365563892,0.00484911,3093.9,3091.9,2.2418513]
[1767365564087,0.00484911,3093.9,3092.0,0.16184]
[1767365564293,0.00484911,3093.9,3092.1,2.2418513]
[1767365564691,0.00484911,3093.9,3092.3,2.2418513]
[1767365565000,0.16171,3094.5,3092.8,2.24509795]
[1767365565197,7.63,3094.7,3092.8,0.00324665]
[1767365565397,0.16173,3094.1,3092.8,0.00324665]
[1767365565599,0.1617,3094.8,3092.8,2.24509795]
[1767365566000,0.00484911,3094.1,3092.8,2.24509795]
[1767365566408,0.00484911,3094.1,3092.8,0.00324665]
[1767365566602,0.16657911,3094.1,3092.8,0.00324665]
[1767365566803,0.16174,3094.0,3092.0,2.2418513]
[1767365567302,0.16174,3094.0,3092.0,2.24509795]
[1767365567524,0.00484911,3094.1,3092.5,0.00324665]
[1767365567808,0.00484911,3094.1,3093.0,0.00484911]
[1767365569802,0.00484911,3094.1,3093.3,0.00324665]
[1767365570307,0.00484911,3094.1,3093.1,2.2418513]
[1767365570509,3.3957,3094.7,3093.8,0.00324665]
[1767365570816,3.234,3094.7,3093.8,0.00324665]
[1767365571003,0.16172,3094.4,3093.0,0.00484911]
[1767365571204,0.83054617,3094.3,3093.0,0.00484911]
[1767365571505,4.38318723,3095.2,3093.4,0.00324665]
[1767365571807,0.83042024,3095.1,3093.7,0.00324665]
[1767365572012,0.00318723,3095.2,3093.7,0.00324665]
[1767365572213,0.00318723,3095.2,3093.7,2.2418513]
[1767365572516,0.00318723,3095.2,3094.0,0.00324665]
[1767365572702,0.00484911,3094.8,3094.0,0.00602104]
[1767365572899,0.00484911,3094.8,3094.1,0.00324665]
[1767365573102,0.00484911,3094.8,3094.2,0.00324665]
[1767365573303,0.00484911,3094.8,3094.0,0.00277439]
[1767365573510,0.99213617,3094.7,3093.0,2.24670041]
[1767365573712,0.83043617,3094.6,3093.0,2.24670041]
[1767365573907,0.83043617,3094.6,3093.2,0.00324665]
[1767365574111,0.00484911,3094.8,3093.2,0.00324665]
[1767365574308,0.00484911,3094.8,3093.7,0.00324665]
[1767365574511,0.00484911,3094.8,3093.7,0.00667031]
[1767365574909,0.00484911,3094.8,3093.7,2.24852161]
[1767365575113,0.00318723,3095.2,3093.7,2.24852161]
[1767365575814,0.00318723,3095.2,3093.8,4.1375941]
[1767365576017,4.38,3095.8,3093.9,2.2418513]
[1767365576319,0.16166,3095.4,3093.7,0.00342366]
[1767365576506,0.83018897,3095.7,3093.7,0.00342366]
[1767365576507,0.83029783,3095.3,3093.7,0.00342366]
[1767365576706,2.33938621,3095.0,3092.6,2.21305307]
[1767365576912,0.16174,3093.9,3092.0,2.21305307]
[1767365577110,0.16176,3093.5,3091.3,2.21305307]
[1767365577307,0.83052647,3093.4,3091.3,2.21305307]
[1767365577508,9.96838621,3093.9,3090.6,2.21305307]
[1767365577509,6.41991268,3093.3,3090.6,2.21305307]
[1767365577709,0.16181,3092.6,3090.6,2.21659464]
[1767365577909,8.44352647,3092.5,3090.6,2.21659464]
[1767365578108,0.00484911,3091.9,3091.2,0.00484911]
[1767365578513,0.00484911,3091.9,3091.5,0.00324665]
[1767365579116,2.34423532,3091.9,3088.9,2.21305307]
[1767365579317,0.82998102,3091.8,3089.1,2.21305307]
[1767365579617,4.379,3092.8,3089.9,2.21305307]
[1767365579913,4.379,3092.8,3090.3,2.21305307]
[1767365580104,4.379,3092.8,3090.5,2.21305307]
[1767365580306,0.0033937,3093.3,3091.2,2.21790218]
[1767365580819,0.0033937,3093.3,3091.4,2.21305307]
[1767365581208,0.00484911,3092.7,3091.6,2.21305307]
[1767365581415,0.0033937,3093.3,3091.6,2.21305307]
[1767365581616,0.0033937,3093.3,3091.8,2.21305307]
[1767365582014,0.528,3094.4,3092.0,2.21305307]
[1767365582529,0.00484911,3093.5,3092.9,0.00484911]
[1767365583019,0.00484911,3093.5,3091.3,2.21305307]
[1767365583020,0.00889121,3093.5,3091.3,2.21305307]
[1767365583418,0.00889121,3093.5,3091.8,2.21305307]
[1767365584020,0.00889121,3093.5,3092.3,0.00484911]
[1767365585011,0.16179,3092.9,3090.4,2.21305307]
[1767365585212,3.235,3092.8,3090.4,2.21305307]
[1767365585411,3.235,3092.8,3090.4,2.21619308]
[1767365585617,3.235,3092.8,3090.4,2.21305307]
[1767365585817,3.235,3092.8,3090.5,4.27306274]
[1767365586021,3.235,3092.8,3091.3,0.00484911]
[1767365586022,0.00484911,3092.0,3091.3,0.00484911]
[1767365586519,7.614,3093.4,3091.3,0.00484911]
[1767365587116,7.614,3093.4,3090.5,0.16533037]
[1767365587117,2.50120621,3092.4,3090.5,0.00341037]
[1767365587420,5.75120621,3092.4,3090.5,0.00341037]
[1767365587720,2.50116621,3093.1,3090.5,0.00341037]
[1767365587919,2.33938621,3092.9,3090.5,0.00341037]
[1767365588122,7.614,3093.0,3091.4,0.00484911]
[1767365588123,0.00484911,3092.0,3091.4,0.00484911]
[1767365588420,6.0,3091.9,3090.5,0.00341037]
[1767365588621,0.00484911,3092.0,3090.5,0.00341037]
[1767365589022,2.33938621,3091.8,3089.4,2.21305307]
[1767365589218,0.16189,3091.1,3088.6,2.21305307]
[1767365589425,3.25,3090.7,3087.8,2.21305307]
[1767365589718,7.616,3091.3,3088.6,4.22247633]
[1767365589912,7.616,3091.3,3088.7,2.21305307]
[1767365590109,2.33938621,3091.0,3088.7,2.21672071]
[1767365590315,0.00484911,3090.2,3088.7,0.00366764]
[1767365590724,0.00484911,3090.2,3089.2,0.00314001]
[1767365591020,0.00484911,3090.2,3088.7,0.00366764]
[1767365591218,4.381,3090.1,3088.7,0.00366764]
[1767365591415,0.00484911,3090.2,3088.7,0.00680765]
[1767365591611,0.00484911,3090.2,3088.7,0.00366764]
[1767365591920,3.25484911,3090.2,3088.7,0.00366764]
[1767365592126,0.16195,3089.9,3088.7,0.00366764]
[1767365592524,0.16195,3089.9,3087.3,2.21305307]
[1767365592713,0.16195,3089.9,3087.8,0.00314001]
[1767365592917,0.16197,3089.6,3087.8,0.00314001]
[1767365593123,0.16197,3089.6,3087.3,2.21305307]
[1767365593324,2.33938621,3090.1,3087.3,2.21305307]
[1767365593622,2.33938621,3089.5,3086.6,2.21305307]
[1767365593813,0.00485791,3088.4,3086.6,2.21305307]
[1767365594012,4.384,3089.0,3086.8,2.21305307]
[1767365594212,0.16197,3089.6,3086.8,2.21305307]
[1767365594418,0.16197,3089.5,3087.0,0.00314001]
[1767365594617,0.16596582,3089.5,3087.0,2.21554058]
[1767365595126,0.00485791,3088.6,3087.9,0.00485791]
[1767365595919,0.00399582,3089.5,3087.9,0.00485791]
[1767365596727,0.00399582,3089.5,3088.1,0.00314001]
[1767365596917,0.00485791,3089.1,3088.1,0.00314001]
[1767365597424,0.00485791,3089.1,3087.9,0.00485791]
[1767365597615,0.16201,3088.8,3087.0,0.00248751]
[1767365597921,0.16204,3088.2,3087.0,0.00248751]
[1767365598125,0.16205,3088.0,3085.9,2.21305307]
[1767365598323,0.16206,3087.9,3085.9,2.21619308]
[1767365598523,0.16206,3087.8,3085.2,2.21305307]
[1767365598720,0.16206,3087.8,3085.5,0.00314001]
[1767365598920,0.00485791,3087.0,3086.3,0.00485791]
[1767365599120,2.33938621,3088.9,3086.3,0.00735082]
[1767365599121,2.416,3088.4,3086.3,0.00735082]
[1767365599320,7.623,3088.5,3086.3,0.00735082]
[1767365599828,9.96238621,3088.5,3086.3,0.00735082]
[1767365600031,2.33938621,3088.4,3086.3,0.00735082]
[1767365600227,0.00485791,3087.7,3086.3,0.00735082]
[1767365601016,0.00485791,3087.7,3086.3,0.01049083]
[1767365601434,0.00485791,3087.7,3086.3,0.00735082]
[1767365601631,0.00485791,3087.7,3086.3,0.01049083]
[1767365601825,0.00485791,3087.7,3086.3,0.00735082]
[1767365602327,0.00485791,3087.7,3086.9,0.00314001]
[1767365602629,0.00485791,3087.7,3086.6,0.00314001]
[1767365602830,0.00485791,3087.7,3086.3,0.00735082]
[1767365603131,0.00485791,3087.7,3086.3,0.01049083]
[1767365603424,0.00485791,3087.7,3086.6,0.00314001]
[1767365603825,0.00485791,3087.7,3086.3,0.00735082]
[1767365604032,0.00485791,3087.7,3086.3,0.01049083]
[1767365604218,0.00485791,3087.7,3083.5,6.30224162]
[1767365604219,3.25,3087.5,3083.5,6.30224162]
[1767365604532,4.387,3087.8,3084.7,2.21305307]
[1767365604533,0.16208,3087.4,3084.7,2.21305307]
[1767365604830,0.16208,3087.4,3084.8,6.34465333]
[1767365605130,3.40205,3088.0,3085.4,2.21305307]
[1767365605321,0.00485791,3087.0,3086.4,0.00485791]
[1767365605527,0.16203,3088.5,3086.4,2.21791098]
[1767365605830,0.16203,3088.5,3086.8,0.00314001]
[1767365606129,0.16203,3088.5,3086.4,2.21791098]
[1767365606329,4.39114362,3088.4,3086.9,0.00314001]
[1767365606516,0.00485791,3088.0,3086.9,0.00314001]
[1767365607327,0.00485791,3088.0,3087.8,0.00314001]
[1767365607625,0.00414362,3088.4,3087.8,0.00564405]
[1767365607825,2.521,3089.4,3087.8,0.00250404]
[1767365608133,0.162,3088.9,3086.3,2.40909682]
[1767365608428,0.00485791,3087.9,3087.3,0.00485791]
[1767365608831,4.388,3088.8,3087.3,6.00485791]
[1767365609025,4.388,3088.8,3087.3,0.00485791]
[1767365609330,4.388,3088.8,3087.3,0.00733537]
[1767365609331,4.39049993,3088.8,3087.3,0.00733537]
[1767365609532,7.64049993,3088.8,3087.3,0.00733537]
[1767365609721,0.16204,3088.3,3087.3,0.00733537]
[1767365609921,0.16204,3088.3,3086.2,2.40909682]
[1767365609922,0.00485791,3088.1,3086.2,2.40909682]
[1767365610931,0.16690791,3088.1,3086.8,0.00485791]
[1767365611628,0.00485791,3088.1,3086.8,0.00485791]
[1767365612431,0.00485791,3088.1,3086.8,2.41395473]
[1767365612626,0.00249993,3088.8,3087.0,2.40909682]
[1767365613336,0.00249993,3088.8,3087.2,2.40909682]
[1767365613633,3.24,3090.0,3087.6,2.40909682]
[1767365613829,0.16196,3089.8,3087.6,2.40909682]
[1767365614022,0.16196,3089.7,3087.6,2.40909682]
[1767365614229,0.16196,3089.7,3087.8,2.40909682]
[1767365614431,0.00356644,3089.7,3087.8,2.57115682]
[1767365614634,0.00356644,3089.7,3088.4,2.41395473]
[1767365614825,0.16189,3091.1,3088.4,2.41682]
[1767365615029,0.16189,3091.1,3088.7,2.57110682]
[1767365615330,7.63,3091.4,3089.2,0.16198]
[1767365615630,0.16185,3091.8,3090.0,0.00485791]
[1767365615833,0.00395986,3091.8,3090.0,2.41395473]
[1767365616228,0.00395986,3091.8,3090.2,2.40909682]
[1767365617239,0.00395986,3091.8,3090.4,2.40909682]
[1767365617636,0.00395986,3091.8,3090.0,0.00485791]
[1767365618037,0.16186,3091.6,3090.0,0.00485791]
[1767365618239,4.389,3091.6,3090.0,0.00485791]
[1767365618740,0.00395986,3091.8,3090.0,2.41395473]
[1767365619236,0.00395986,3091.8,3090.1,4.30269167]
[1767365619440,0.00395986,3091.8,3090.0,2.41395473]
[1767365619741,0.00395986,3091.8,3090.0,0.00485791]
[1767365620056,0.16189,3091.1,3089.3,2.40909682]
[1767365621036,0.00485791,3090.5,3089.9,0.00485791]
[1767365621239,0.00395986,3091.8,3089.9,0.00485791]
[1767365621447,0.16580986,3091.8,3089.9,0.00485791]
[1767365621837,0.00395986,3091.8,3089.9,2.41395473]
[1767365623442,0.00395986,3091.8,3090.1,2.40909682]
[1767365623742,0.00395986,3091.8,3090.3,2.40909682]
[1767365627255,2.55210483,3091.8,3089.9,0.00485791]
[1767365627553,0.16187,3091.5,3089.9,0.00485791]
[1767365627745,0.16188,3091.2,3089.9,0.00485791]
[1767365628047,0.1619,3090.9,3089.9,0.00485791]
[1767365628245,0.1619,3090.9,3089.0,2.40909682]
[1767365629346,0.00485791,3090.3,3089.6,0.00485791]
[1767365629950,0.00485791,3090.3,3089.0,2.40909682]
[1767365630247,0.00485791,3090.3,3088.4,2.41196209]
[1767365630747,10.873,3091.2,3088.4,2.41196209]
[1767365630748,7.623,3091.2,3089.0,0.162]
[1767365630959,7.623,3091.2,3089.8,0.00485791]
[1767365631259,0.16189,3091.0,3089.8,0.00485791]
[1767365631554,0.1619,3090.8,3089.8,0.00485791]
[1767365631752,0.1619,3090.8,3088.4,2.50038605]
[1767365631938,0.16188,3091.2,3088.4,2.50038605]
[1767365632143,2.50067267,3092.3,3088.8,2.49752078]
[1767365632339,2.50067267,3092.3,3088.5,4.22880291]
[1767365632340,0.16186,3091.6,3089.3,2.49752078]
[1767365632646,0.00485791,3090.8,3090.1,0.00485791]
[1767365633844,0.00395986,3091.8,3090.1,2.50237869]
[1767365634044,0.16186,3091.7,3090.1,0.00485791]
[1767365634447,0.00395986,3091.8,3090.1,0.00485791]
[1767365634846,0.00485791,3091.3,3090.1,0.00485791]
[1767365635947,5.51101148,3091.3,3088.7,2.33581965]
[1767365636251,0.00485791,3091.3,3088.9,2.49781965]
[1767365636755,0.00485791,3091.3,3089.1,2.33581965]
[1767365636953,2.25615357,3091.1,3089.9,0.00485791]
[1767365637156,3.25,3090.6,3088.5,2.33581965]
[1767365637352,0.00485791,3091.3,3088.4,0.00286527]
[1767365637353,0.16195,3090.0,3088.4,0.00286527]
[1767365637954,0.16196,3089.8,3088.4,0.00286527]
[1767365638254,0.00485791,3089.4,3087.1,2.49791965]
[1767365638554,3.25,3089.9,3087.1,2.49791965]
[1767365638759,0.16197,3089.5,3087.3,2.33581965]
[1767365639055,0.16198,3089.4,3087.3,2.33581965]
[1767365639250,0.00485791,3088.7,3088.1,0.00485791]
[1767365640758,0.00485791,3088.7,3086.1,2.33581965]
[1767365640759,0.16203,3088.4,3086.1,2.33581965]
[1767365641158,5.50615357,3088.4,3086.1,2.33581965]
[1767365641453,5.50615357,3088.4,3085.3,3.238]
[1767365641454,0.16206,3087.9,3085.3,3.238]
[1767365641655,0.00485791,3086.9,3086.3,0.00485791]
[1767365641855,0.00717646,3086.9,3086.3,0.00762315]
[1767365642350,0.00717646,3086.9,3084.8,2.33581965]
[1767365642751,0.00717646,3086.9,3085.0,2.33581965]
[1767365643253,0.00717646,3086.9,3085.6,0.00323858]
[1767365643858,0.16204,3088.2,3085.6,2.33905823]
[1767365644054,0.16205,3088.1,3085.8,2.33581965]
[1767365644359,2.25615357,3088.0,3085.6,0.00323858]
[1767365644557,0.16209,3087.3,3085.6,0.00323858]
[1767365644850,0.16614863,3087.3,3085.6,0.00323858]
[1767365645056,0.16614863,3087.3,3085.0,0.00353149]
[1767365645057,2.41828357,3086.6,3085.0,0.00353149]
[1767365645256,0.16215,3086.2,3085.0,0.00353149]
[1767365645558,2.25615357,3086.6,3085.0,0.00353149]
[1767365645559,7.138,3086.5,3085.0,0.00353149]
[1767365646162,7.138,3086.5,3085.4,0.00485791]
[1767365646455,0.00485791,3086.8,3085.4,0.00485791]
[1767365646666,0.00485791,3086.8,3085.4,2.34067756]
[1767365648165,0.00485791,3086.8,3085.4,0.00485791]
[1767365649062,0.16697791,3086.8,3085.4,0.00485791]
[1767365649361,0.00485791,3086.8,3085.4,0.00485791]
[1767365651161,0.00485791,3086.8,3085.4,2.34067756]
[1767365652355,0.00485791,3086.8,3085.4,0.00485791]
[1767365652562,0.16214,3086.4,3085.0,0.00353149]
[1767365652757,0.16214,3086.4,3083.2,2.33581965]
[1767365652758,2.25615357,3086.1,3083.2,2.33581965]
[1767365652956,2.25615357,3085.9,3083.2,2.33581965]
[1767365653161,40.8,3086.3,3082.7,4.22261891]
[1767365653162,2.25615357,3085.2,3082.7,4.22261891]
[1767365653357,7.632,3085.2,3082.8,2.33581965]
[1767365653563,0.16216,3086.0,3083.2,0.1623]
[1767365653754,0.16216,3085.9,3083.3,2.33581965]
[1767365653957,7.632,3086.2,3083.7,2.33581965]
[1767365654365,2.41828357,3086.4,3083.9,2.33581965]
[1767365654767,7.632,3086.7,3084.1,2.33581965]
[1767365654963,0.00485791,3085.7,3085.1,0.00485791]
[1767365655158,7.632,3086.7,3085.1,0.00485791]
[1767365655361,0.16212,3086.8,3085.1,0.00485791]
[1767365656059,0.00485791,3086.3,3085.1,0.00485791]
[1767365656458,0.00485791,3086.3,3085.1,2.34067756]
[1767365656663,7.63705863,3087.3,3085.1,2.34067756]
[1767365656864,7.63705863,3087.3,3085.3,2.33581965]
[1767365657259,7.63705863,3087.3,3085.5,2.33581965]
[1767365657463,0.00405863,3087.3,3085.7,2.33581965]
[1767365657864,0.00485791,3086.8,3085.9,2.33581965]
[1767365658269,0.00485791,3086.8,3085.5,2.33816486]
[1767365658473,0.00405863,3087.3,3085.5,2.33816486]
[1767365658764,0.00405863,3087.3,3085.7,2.33581965]
[1767365659074,2.25615357,3088.8,3085.5,0.16452521]
[1767365659075,0.16198,3089.3,3086.9,2.33581965]
[1767365659471,0.00485791,3088.4,3087.8,0.00485791]
[1767365659868,0.0082439,3088.4,3087.8,0.00485791]
[1767365660076,0.0082439,3088.4,3087.8,0.0088522]
[1767365660370,0.16199,3089.2,3087.8,0.0088522]
[1767365660570,3.40395,3090.0,3087.8,2.34467185]
[1767365660874,0.16193,3090.3,3088.0,2.33581965]
[1767365661368,0.16193,3090.3,3087.8,0.0088522]
[1767365661369,0.16193,3090.3,3088.1,6.5761749]
[1767365661566,0.00310246,3090.3,3088.2,2.33581965]
[1767365661768,0.00310246,3090.3,3088.2,2.49785965]
[1767365661973,0.00310246,3090.3,3088.4,2.33581965]
[1767365662170,0.00310246,3090.3,3088.4,2.49784965]
[1767365662469,0.00310246,3090.3,3088.6,2.33581965]
[1767365663172,0.00310246,3090.3,3088.6,2.49783965]
[1767365663467,0.00310246,3090.3,3088.6,2.33581965]
[1767365663872,0.00310246,3090.3,3088.8,2.33581965]
[1767365664072,0.00310246,3090.3,3087.9,2.33581965]
[1767365664269,0.00310246,3090.3,3087.8,0.0088522]
[1767365664270,0.00310246,3090.3,3088.3,4.29768366]
[1767365664471,0.00310246,3090.3,3088.4,2.33581965]
[1767365664769,0.00310246,3090.3,3088.5,2.33581965]
[1767365665170,0.00310246,3090.3,3088.4,7.94403]
[1767365665171,0.00310246,3090.3,3088.6,6.57055522]
[1767365665379,0.00310246,3090.3,3088.0,2.33581965]
[1767365665777,0.00310246,3090.3,3088.2,2.33581965]
[1767365666078,0.00310246,3090.3,3088.3,4.24269582]
[1767365666472,0.00310246,3090.3,3088.2,2.33581965]
[1767365666978,0.00310246,3090.3,3088.5,2.45902673]
[1767365667976,0.00310246,3090.3,3087.9,2.45902673]
[1767365668383,0.00310246,3090.3,3088.3,2.45902673]
[1767365668675,0.00310246,3090.3,3088.4,4.15153886]
[1767365668882,0.00310246,3090.3,3088.5,2.45902673]
[1767365669373,0.00310246,3090.3,3088.6,4.15153886]
[1767365669576,0.00310246,3090.3,3088.5,2.45902673]
[1767365671374,0.00310246,3090.3,3088.7,2.45902673]
[1767365671676,0.00310246,3090.3,3088.8,4.19051027]
[1767365671875,0.00310246,3090.3,3088.9,2.45902673]
[1767365672081,3.24,3091.2,3088.9,2.45902673]
[1767365672284,3.24,3091.2,3089.7,0.00485791]
[1767365673072,3.24347196,3091.2,3089.7,0.00485791]
[1767365673475,0.00347196,3091.2,3089.7,2.46388464]
[1767365674080,0.00347196,3091.2,3089.9,2.45902673]
[1767365674282,2.41626831,3092.4,3089.9,2.45902673]
[1767365674490,3.25,3092.3,3089.9,2.45902673]
[1767365674872,3.25,3092.3,3089.7,0.16681791]
[1767365674873,0.16179,3092.9,3090.1,2.62096673]
[1767365675173,0.16497147,3092.9,3090.3,2.45902673]
[1767365675373,3.41497147,3092.9,3091.3,0.00485791]
[1767365675980,0.16185,3091.8,3090.1,0.0031762]
[1767365676675,2.41626831,3092.0,3090.1,0.0031762]
[1767365676876,7.628,3092.1,3090.1,0.0031762]
[1767365677080,0.00485791,3091.4,3090.7,0.00485791]
[1767365677678,7.018,3092.8,3090.7,0.00485791]
[1767365678083,7.018,3092.8,3090.7,2.46388464]
[1767365678587,0.00318147,3092.9,3091.1,2.45902673]
[1767365678979,0.00318147,3092.9,3091.3,2.45902673]
[1767365679177,0.00318147,3092.9,3091.3,2.62089673]
[1767365679378,0.00318147,3092.9,3091.4,4.2995552]
[1767365679582,0.00318147,3092.9,3091.3,2.62089673]
[1767365679783,0.00318147,3092.9,3091.3,2.45902673]
[1767365681091,0.00318147,3092.9,3091.5,2.45902673]
[1767365683082,0.00318147,3092.9,3090.9,2.45902673]
[1767365683685,0.00318147,3092.9,3090.7,0.00485791]
[1767365683686,2.41944978,3092.9,3090.7,0.00485791]
[1767365683888,0.16183,3092.3,3090.7,0.00485791]
[1767365684185,0.16184,3092.1,3090.7,0.00485791]
[1767365685283,0.1618,3092.8,3090.7,0.00485791]
[1767365685483,0.00318147,3092.9,3090.9,2.45902673]
[1767365686080,0.1618,3092.7,3090.7,0.00485791]
[1767365686283,5.65644978,3092.9,3090.7,2.46388464]
[1767365686477,3.24018147,3092.9,3090.7,2.46388464]
[1767365686678,0.00318147,3092.9,3090.7,2.46388464]
[1767365686888,0.16181,3092.7,3090.7,2.46388464]
[1767365690188,0.00318147,3092.9,3090.7,2.46388464]
[1767365690390,0.00318147,3092.9,3090.9,2.45902673]
[1767365690590,0.00318147,3092.9,3091.1,2.45902673]
[1767365690791,0.00318147,3092.9,3091.1,2.62091673]
[1767365690991,0.00318147,3092.9,3091.3,2.45902673]
[1767365691184,1.24320903,3094.3,3091.9,2.45902673]
[1767365691185,0.16173,3094.1,3091.9,2.45902673]
[1767365691386,0.16173,3094.1,3092.7,0.00484997]
[1767365691991,8.89326831,3094.5,3092.7,0.00484997]
[1767365692193,0.00482353,3093.9,3090.6,0.16191]
[1767365692395,0.82798366,3093.8,3091.4,2.45902673]
[1767365692597,0.16174,3094.0,3091.6,2.45902673]
[1767365693000,2.41626831,3094.4,3091.6,2.45902673]
[1767365693297,2.57804831,3093.2,3091.6,0.00319776]
[1767365693702,0.16178,3093.1,3091.6,0.00319776]
[1767365694193,5.65626831,3093.2,3091.6,0.00319776]
[1767365694397,0.1618,3092.7,3091.6,0.00319776]
[1767365695294,2.41626831,3092.5,3090.3,2.45902673]
[1767365695494,2.41626831,3092.3,3089.7,2.45902673]
[1767365695699,0.16186,3091.7,3089.7,2.45902673]
[1767365696094,0.16181,3092.6,3089.9,2.2989551]
[1767365696398,0.00484997,3091.6,3090.9,0.00484997]
[1767365697692,0.00419061,3092.6,3090.9,0.00484997]
[1767365697898,0.00419061,3092.6,3090.9,2.30380507]
[1767365698798,0.00484997,3092.1,3090.9,2.30380507]
[1767365700493,0.00484997,3092.1,3090.9,0.00484997]
[1767365701003,0.00419061,3092.6,3090.9,2.30380507]
[1767365701200,3.23646673,3092.5,3090.9,0.00484997]
[1767365701397,2.5646176,3092.2,3090.9,0.00484997]
[1767365701604,0.83367913,3092.1,3090.9,0.00484997]
[1767365701805,2.5646276,3092.0,3089.9,0.00373722]
[1767365702099,0.83367913,3091.9,3089.9,0.00373722]
[1767365702303,0.83367913,3091.9,3089.9,2.30269232]
[1767365702612,0.83367913,3091.9,3090.1,2.4608951]
[1767365702801,0.00419061,3092.6,3090.7,0.00484997]
[1767365702997,0.83481797,3092.5,3090.7,0.00484997]
[1767365703197,0.83481797,3092.4,3090.7,2.30380507]
[1767365703400,0.83481797,3092.3,3090.7,0.00484997]
[1767365703598,0.16600061,3092.6,3090.7,0.00484997]
[1767365703599,0.83481797,3092.2,3090.7,0.00484997]
[1767365703799,0.00484997,3091.8,3090.7,0.00484997]
[1767365704908,0.00484997,3091.8,3090.7,2.30380507]
[1767365705705,0.00419061,3092.6,3091.3,2.2989551]
[1767365706599,0.16177,3093.4,3091.5,2.2989551]
[1767365706807,0.83529542,3093.3,3091.5,2.2989551]
[1767365707001,0.16177,3093.4,3091.5,2.2989551]
[1767365707201,0.83532087,3093.3,3091.5,2.2989551]
[1767365707401,0.16177,3093.4,3091.5,2.2989551]
[1767365707602,0.16178,3093.2,3090.8,2.4608551]
[1767365707904,0.00416757,3093.4,3091.3,2.2989551]
[1767365708105,0.83536937,3093.3,3091.3,2.2989551]
[1767365708397,0.16593757,3093.4,3091.5,2.2989551]
[1767365708998,0.83554247,3093.3,3091.3,0.16188]
[1767365709305,0.16593757,3093.4,3091.3,0.16188]
[1767365709508,0.00416757,3093.4,3091.5,2.2989551]
[1767365709799,0.00416757,3093.4,3091.7,2.2989551]
[1767365710204,0.00416757,3093.4,3091.9,2.2989551]
[1767365710406,0.00416757,3093.4,3092.3,0.00484997]
[1767365710605,0.00416757,3093.4,3092.3,0.00776887]
[1767365712507,0.00416757,3093.4,3090.3,2.84208973]
[1767365712508,0.1618,3092.8,3090.7,2.2989551]
[1767365712916,2.4027876,3093.2,3090.9,2.2989551]
[1767365713208,0.16179,3092.9,3090.9,2.2989551]
[1767365713712,5.64763757,3092.2,3090.9,0.00361887]
[1767365714016,0.00484997,3092.2,3090.9,2.30257397]
[1767365714411,0.00484997,3092.2,3090.9,0.00361887]
[1767365714610,0.00484997,3092.2,3090.9,2.30257397]
[1767365714806,0.00484997,3092.2,3091.2,0.00484997]
[1767365716417,3.40185,3091.8,3089.5,2.4609251]
[1767365717313,0.16186,3091.7,3090.3,0.00484997]
[1767365718016,0.16186,3091.6,3090.3,0.00484997]
[1767365718703,0.16667997,3092.2,3090.3,0.00484997]
[1767365719212,0.16184,3092.1,3090.3,0.00484997]
[1767365719508,2.5646276,3092.0,3090.3,0.00484997]
[1767365719710,2.4027876,3092.0,3090.3,0.00484997]
[1767365719917,0.00484997,3092.2,3090.3,2.30380507]
[1767365721113,0.00484997,3092.2,3090.4,0.16192]
[1767365721317,0.00484997,3092.2,3090.5,2.2989551]
[1767365721506,1.98975346,3094.8,3090.4,4.11112217]
[1767365721507,0.16176,3093.6,3091.4,2.2989551]
[1767365721815,2.5645576,3093.3,3090.8,2.4608551]
[1767365722009,7.619,3093.2,3090.8,2.4608551]
[1767365722209,10.1835676,3093.2,3090.8,2.4608551]
[1767365722416,2.4027876,3092.3,3090.0,2.2989551]
[1767365722617,2.4027876,3092.3,3089.5,0.16518983]
[1767365722618,0.00484997,3091.5,3089.5,0.00321983]
[1767365722912,0.00484997,3091.5,3089.9,2.2989551]
[1767365723114,0.00484997,3091.5,3089.6,4.27813107]
[1767365723115,3.24,3091.4,3089.6,4.27813107]
[1767365723317,5.6427876,3091.2,3089.5,0.00321983]
[1767365723615,5.64587803,3091.2,3090.0,0.00484997]
[1767365723820,7.78389,3091.1,3090.0,0.00484997]
[1767365724111,7.78389,3091.1,3089.5,0.00321983]
[1767365724320,0.16194,3090.2,3087.7,2.2989551]
[1767365724715,2.4027876,3089.9,3087.7,2.2989551]
[1767365724910,2.4027876,3089.7,3088.5,0.00484997]
[1767365725111,0.00484997,3089.1,3087.0,2.4610551]
[1767365725309,0.00484997,3089.1,3087.5,2.2989551]
[1767365725610,0.00484997,3089.1,3087.6,4.3433859]
[1767365725916,0.00484997,3089.1,3087.5,2.3023122]
[1767365726115,0.00484997,3089.1,3088.0,0.00484997]
[1767365726815,0.00484997,3089.1,3087.5,0.0033571]
[1767365727717,0.00484997,3089.1,3087.5,2.24629535]
[1767365727916,0.00484997,3089.1,3088.0,0.00323334]